bitfinex-derivatives/quotes_ETHF0:USTF0_20250430
["timestamp","ask_amount","ask_price","bid_price","bid_amount"]
[1746034582495,1.12922,1771.1,1771.0,2.82824]
[1746034583098,1.12922,1771.1,1771.0,1.699]
[1746034583300,1.12931,1770.9,1770.8,0.7989]
[1746034583504,1.12931,1770.9,1770.8,1.92827]
[1746034583990,5.6632,1771.0,1770.9,1.12931]
[1746034584190,4.8213,1771.0,1770.9,1.12931]
[1746034584392,4.8213,1771.0,1770.9,2.87611]
[1746034584600,3.692,1771.0,1770.9,2.87611]
[1746034585099,3.692,1771.0,1770.9,6.70411]
[1746034585298,4.33703,1771.1,1771.0,1.12924]
[1746034585491,3.692,1771.3,1771.2,1.12912]
[1746034585690,4.3368,1771.4,1771.3,1.12905]
[1746034586097,4.33679,1771.4,1771.3,4.95705]
[1746034586500,4.33679,1771.4,1771.3,6.70385]
[1746034586795,3.2078,1771.4,1771.3,6.70385]
[1746034587096,6.4885,1771.6,1771.5,1.12893]
[1746034587799,6.4885,1771.6,1771.5,2.82803]
[1746034590202,5.3596,1771.6,1771.5,2.82803]
[1746034590391,3.692,1771.6,1771.5,2.82803]
[1746034591199,3.692,1771.6,1771.5,6.65603]
[1746034591506,3.2078,1772.1,1771.7,2.822]
[1746034591693,4.82054,1772.1,1772.0,1.12861]
[1746034591893,3.692,1772.1,1772.0,1.12861]
[1746034592592,3.692,1772.1,1772.0,1.93091]
[1746034592796,5.3346,1772.1,1772.0,1.93091]
[1746034593095,3.692,1772.1,1772.0,5.75891]
[1746034593799,4.82054,1772.1,1772.0,5.75891]
[1746034594097,3.692,1772.1,1772.0,5.75891]
[1746034594402,4.82054,1772.1,1772.0,5.75891]
[1746034594600,3.692,1772.1,1772.0,5.75891]
[1746034594996,6.54104,1772.1,1772.0,5.75891]
[1746034595203,6.54104,1772.1,1772.0,4.95661]
[1746034595609,6.54104,1772.1,1772.0,3.828]
[1746034595901,6.54104,1772.1,1772.0,4.95661]
[1746034596099,6.54104,1772.1,1772.0,1.12861]
[1746034596300,7.41084,1772.1,1772.0,1.12861]
[1746034596502,1.12864,1772.0,1771.9,1.12861]
[1746034596699,1.763,1772.0,1771.9,1.12861]
[1746034596903,1.763,1772.0,1771.9,2.81861]
[1746034598703,3.692,1772.1,1772.0,1.12861]
[1746034598903,3.692,1772.1,1772.0,2.81861]
[1746034599207,3.692,1772.1,1772.0,6.64661]
[1746034599905,4.82054,1772.1,1772.0,6.64661]
[1746034600207,4.82054,1772.1,1772.0,1.12861]
[1746034600398,3.692,1772.1,1771.8,4.0162]
[1746034600600,1.12867,1771.9,1771.8,1.12872]
[1746034600803,1.1288,1771.8,1771.7,1.12875]
[1746034601204,3.6787,1771.9,1771.8,1.12873]
[1746034601702,1.7307,1771.9,1771.8,1.12873]
[1746034602210,2.85937,1771.9,1771.8,1.12873]
[1746034602510,1.7307,1771.9,1771.8,1.12873]
[1746034603002,5.66978,1772.1,1772.0,1.12861]
[1746034603209,7.30188,1772.1,1772.0,1.12861]
[1746034603809,1.12861,1772.0,1771.9,4.46692]
[1746034604009,2.76071,1772.0,1771.9,4.46692]
[1746034604211,1.12867,1771.9,1771.8,1.12868]
[1746034604406,2.76077,1771.9,1771.8,1.12868]
[1746034606106,1.1288,1771.8,1771.7,1.12874]
[1746034606303,2.8602,1771.8,1771.7,1.12874]
[1746034606705,2.86013,1771.8,1771.7,1.12874]
[1746034607509,1.7314,1771.8,1771.7,1.12874]
[1746034607711,4.0283,1772.0,1771.9,1.12867]
[1746034607910,3.2078,1772.0,1771.9,1.12867]
[1746034608312,2.5806,1772.1,1772.0,1.12861]
[1746034608513,3.2078,1772.3,1772.2,1.12848]
[1746034608709,1.12839,1772.4,1772.3,1.12842]
[1746034609019,2.81929,1772.4,1772.3,1.12842]
[1746034609209,1.12848,1772.3,1772.1,1.6824]
[1746034609511,3.66274,1772.2,1772.1,1.12851]
[1746034609710,2.81944,1772.2,1772.1,1.12851]
[1746034609909,6.64901,1772.4,1772.3,1.12842]
[1746034609910,3.828,1772.4,1772.3,1.12842]
[1746034610110,1.1284,1772.4,1772.3,1.12842]
[1746034610415,1.12842,1772.3,1772.2,2.81083]
[1746034610613,1.12842,1772.3,1772.2,1.12843]
[1746034611406,2.81931,1772.4,1772.3,1.12842]
[1746034613318,2.81931,1772.4,1772.3,2.86622]
[1746034613612,1.6909,1772.4,1772.3,2.86622]
[1746034613815,2.81925,1772.4,1772.3,2.86622]
[1746034614520,1.6909,1772.4,1772.3,2.86622]
[1746034615312,2.81925,1772.4,1772.3,2.86622]
[1746034616117,1.6909,1772.4,1772.3,2.86622]
[1746034616416,2.81925,1772.4,1772.3,2.86622]
[1746034616623,3.2078,1773.0,1772.3,6.7378]
[1746034616808,1.656,1772.8,1772.7,1.12816]
[1746034618406,7.7092,1773.0,1772.9,1.12803]
[1746034618814,8.83717,1773.0,1772.9,1.12803]
[1746034619120,7.7092,1773.0,1772.9,1.12803]
[1746034619516,4.5014,1773.0,1772.9,1.12803]
[1746034619811,3.691,1773.0,1772.9,1.12803]
[1746034620216,3.691,1773.0,1772.9,6.57793]
[1746034620416,4.0866,1773.2,1773.1,1.12791]
[1746034620621,4.9607,1773.2,1773.1,1.12791]
[1746034621413,4.9607,1773.2,1773.1,1.12212887]
[1746034621812,3.69,1773.3,1773.2,1.12784]
[1746034622414,4.8889,1773.4,1773.3,1.12778]
[1746034622715,3.2078,1773.4,1773.3,2.85108]
[1746034622913,1.12768,1773.5,1773.4,1.12765]
[1746034623113,1.12768,1773.5,1773.1,4.49707]
[1746034623313,1.12784,1773.3,1773.2,1.12782]
[1746034623510,6.49887,1773.4,1773.3,1.12778]
[1746034623713,4.81777,1773.4,1773.3,1.12778]
[1746034623909,3.69,1773.4,1773.3,1.12778]
[1746034624110,3.2078,1773.5,1773.4,1.12772]
[1746034624316,8.5828,1773.7,1773.4,1.7662]
[1746034624519,1.12763,1773.6,1773.5,1.1276]
[1746034626020,1.12765,1773.5,1773.4,2.89387]
[1746034626219,4.33539,1773.7,1773.6,1.12759]
[1746034626625,1.12759,1773.6,1773.5,4.58129]
[1746034626924,1.12759,1773.6,1773.5,4.58135]
[1746034627325,5.13216,1773.7,1773.6,1.12759]
[1746034627519,1.12759,1773.6,1773.5,4.5813]
[1746034627717,5.13217,1773.7,1773.6,1.12759]
[1746034628216,3.2078,1774.2,1773.8,1.12746]
[1746034628415,0.7968,1774.2,1774.1,1.12727]
[1746034628821,3.2078,1774.4,1774.0,1.6618]
[1746034629120,3.2078,1774.2,1774.0,1.6618]
[1746034629626,3.2078,1774.2,1774.1,1.12727]
[1746034630015,3.2078,1774.4,1774.1,2.78907]
[1746034630320,3.2078,1774.4,1774.3,1.12714]
[1746034631122,3.2078,1774.4,1774.3,9.95514]
[1746034631325,11.36594194,1774.8,1774.7,1.12689]
[1746034631717,14.57374194,1774.8,1774.6,1.7169]
[1746034631917,14.57374194,1774.8,1774.7,1.12689]
[1746034632227,11.36594194,1774.8,1774.7,1.12689]
[1746034632928,11.36594194,1774.8,1774.7,2.84379]
[1746034633119,11.36594194,1774.8,1774.7,15.40179]
[1746034633318,12.95287336,1774.9,1774.8,1.12683]
[1746034633518,15.1583107,1775.0,1774.9,1.12676]
[1746034633729,6.37221635,1775.3,1775.2,1.12657]
[1746034634023,2.83976635,1775.3,1775.2,13.06437]
[1746034634227,43.21047049,1775.9,1775.7,1.12622]
[1746034634432,69.2540773,1775.9,1775.6,1.12629]
[1746034634723,53.21047049,1775.9,1775.7,40.8]
[1746034634927,14.59099611,1775.8,1775.7,40.8]
[1746034635129,16.31439611,1775.8,1775.7,41.92626]
[1746034635321,1.7234,1775.8,1775.7,40.8]
[1746034635529,1.7234,1775.8,1775.7,41.92626]
[1746034635725,27.76700681,1775.8,1775.6,3.2078]
[1746034635925,1.12635,1775.6,1775.4,1.12642]
[1746034636128,1.4526107,1775.4,1775.3,3.2078]
[1746034636332,17.76700681,1775.5,1775.4,1.12645]
[1746034636531,1.7234,1775.5,1775.4,1.12645]
[1746034636733,43.21047049,1775.9,1775.4,2.81612]
[1746034636934,16.21089611,1775.8,1775.7,1.12626]
[1746034637122,1.6199,1775.8,1775.7,1.12626]
[1746034637632,27.66350681,1775.8,1775.5,3.2078]
[1746034637831,16.04360681,1775.7,1775.6,1.1263]
[1746034638034,17.66350681,1775.7,1775.4,5.5299]
[1746034638231,14.59099611,1775.6,1775.5,1.12634]
[1746034638421,16.21089611,1775.6,1775.5,1.12634]
[1746034638626,28.78982681,1775.6,1775.4,2.8283]
[1746034638927,1.12645,1775.4,1775.3,40.8]
[1746034639232,1.12679,1774.9,1774.8,1.12683]
[1746034639433,14.59099611,1774.9,1774.8,1.12683]
[1746034639635,1.6662,1774.9,1774.8,1.12683]
[1746034640026,1.6662,1774.9,1774.8,2.72233]
[1746034640729,1.12666,1775.1,1774.8,1.5955]
[1746034640934,17.70980681,1775.1,1775.0,1.1267]
[1746034641230,1.6662,1775.1,1775.0,1.1267]
[1746034641929,24.50200681,1775.1,1774.7,44.0078]
[1746034642135,14.59099611,1774.9,1774.8,1.12678]
[1746034642435,16.25719611,1775.1,1775.0,1.1267]
[1746034642624,1.6662,1775.1,1775.0,1.1267]
[1746034643026,17.38383611,1775.1,1775.0,1.1267]
[1746034643227,24.50200681,1775.1,1774.7,47.7348]
[1746034643525,16.04360681,1774.8,1774.7,40.8]
[1746034643931,1.7091,1774.9,1774.8,1.12683]
[1746034644432,5.96697,1775.3,1775.2,1.12657]
[1746034644632,14.59099611,1775.1,1774.8,8.18846]
[1746034644832,19.25140681,1775.1,1775.0,1.1267]
[1746034645137,14.59099611,1775.1,1775.0,1.1267]
[1746034645440,5.96696,1775.3,1775.2,1.12657]
[1746034645629,11.6326,1775.3,1775.2,1.12657]
[1746034645934,27.67620681,1775.3,1775.2,1.12657]
[1746034646135,27.67620681,1775.3,1775.2,4.95457]
[1746034646434,27.29460681,1775.3,1775.2,4.95457]
[1746034646930,30.11621681,1775.3,1775.2,3.828]
[1746034647135,1.12657,1775.2,1775.1,1.1266]
[1746034647433,17.73870681,1775.2,1775.1,1.1266]
[1746034647633,1.6951,1775.2,1775.1,1.1266]
[1746034648024,4.9029,1775.2,1775.1,1.1266]
[1746034650139,1.6951,1775.2,1775.1,1.1266]
[1746034650437,4.0053,1775.3,1775.2,1.12657]
[1746034650633,10.7975,1775.3,1775.2,1.12657]
[1746034650939,21.3512464,1775.3,1775.2,1.12657]
[1746034651236,21.3512464,1775.3,1775.2,4.95457]
[1746034651537,14.5590464,1775.3,1775.2,4.95457]
[1746034651930,10.77211224,1775.3,1775.2,4.95457]
[1746034652131,10.5537464,1775.3,1775.2,4.95457]
[1746034652431,17.3459464,1775.3,1775.2,4.95457]
[1746034652631,1.9958,1775.4,1775.3,1.12651]
[1746034652835,8.788,1775.4,1775.3,1.12651]
[1746034653038,19.3417464,1775.4,1775.3,1.12651]
[1746034653236,19.3416964,1775.4,1775.3,1.12651]
[1746034653437,19.9056464,1775.4,1775.3,1.12651]
[1746034653639,21.0320964,1775.4,1775.3,1.12651]
[1746034654042,19.9056464,1775.4,1775.3,1.12651]
[1746034654238,19.9056464,1775.4,1775.3,4.95451]
[1746034655540,0.804,1775.7,1775.6,1.12632]
[1746034655737,7.5962,1775.7,1775.6,1.12632]
[1746034655933,18.1499464,1775.7,1775.6,1.12632]
[1746034656134,0.804,1775.7,1775.6,4.33412]
[1746034656434,3.726,1776.0,1775.9,1.12613]
[1746034656638,10.2272357,1776.0,1775.7,2.81552]
[1746034656840,1.6726,1776.1,1776.0,1.12606]
[1746034657039,12.2263464,1776.1,1776.0,1.12606]
[1746034657238,10.7737357,1776.1,1776.0,1.12606]
[1746034657442,0.8752,1776.1,1776.0,1.12606]
[1746034657636,1.1261,1776.0,1775.9,1.12609]
[1746034657837,1.1261,1776.0,1775.9,41.92609]
[1746034658038,20.9317464,1776.0,1775.9,41.92609]
[1746034658237,20.9317464,1776.0,1775.9,45.75409]
[1746034658535,20.9317064,1776.0,1775.9,45.75409]
[1746034658738,20.9317064,1776.0,1775.9,3.828]
[1746034659038,2.81533,1775.9,1775.5,7.0328]
[1746034659237,11.6800664,1775.6,1775.5,1.12638]
[1746034659634,20.9784664,1775.6,1775.5,1.12638]
[1746034659841,11.6073357,1775.6,1775.5,41.92638]
[1746034660234,1.6623,1775.6,1775.5,45.75438]
[1746034660830,10.7634357,1775.6,1775.5,45.75438]
[1746034662239,4.33397,1775.9,1775.8,1.12619]
[1746034662437,11.4526107,1775.9,1775.8,1.12619]
[1746034662637,12.3089357,1775.9,1775.8,1.12619]
[1746034662834,3.2078,1775.9,1775.8,1.12619]
[1746034663035,6.05264,1776.1,1776.0,1.12606]
[1746034663244,12.84484,1776.1,1776.0,1.12606]
[1746034663436,20.1907864,1776.1,1776.0,1.12606]
[1746034663640,1.12611,1776.0,1775.9,1.12608]
[1746034663849,11.6798764,1775.9,1775.8,3.828]
[1746034664147,1.12626,1775.7,1775.6,1.12629]
[1746034664352,2.86344,1775.8,1775.7,1.12621]
[1746034664846,20.2093864,1775.8,1775.7,1.12621]
[1746034665149,1.7372,1775.8,1775.7,4.95421]
[1746034665338,11.9645257,1775.8,1775.7,4.95421]
[1746034665542,20.2093364,1775.8,1775.7,4.95421]
[1746034665947,20.2093364,1775.8,1775.7,3.828]
[1746034666347,20.2093364,1775.8,1775.7,4.95426]
[1746034666538,23.4171364,1775.8,1775.7,3.828]
[1746034667149,1.12632,1775.6,1775.5,41.92634]
[1746034667349,11.6800664,1775.6,1775.5,41.92634]
[1746034667542,9.1011357,1775.6,1775.5,1.12634]
[1746034667743,10.7371357,1775.6,1775.5,1.12634]
[1746034667943,1.636,1775.6,1775.5,1.12634]
[1746034668242,1.636,1775.6,1775.5,6.61564]
[1746034669136,2.76232,1775.6,1775.5,6.61564]
[1746034669344,2.76232,1775.6,1775.5,4.95434]
[1746034669649,20.1082664,1775.6,1775.5,3.828]
[1746034669841,20.9129664,1775.6,1775.5,3.828]
[1746034670243,19.7866464,1775.6,1775.4,1.1264]
[1746034670448,4.1903707,1775.5,1775.4,1.1264]
[1746034670753,13.2915064,1775.5,1775.4,1.1264]
[1746034671042,20.0837064,1775.5,1775.4,1.1264]
[1746034672645,1.12651,1775.4,1775.3,1.12646]
[1746034672949,1.12651,1775.4,1774.9,1.97261]
[1746034672950,10.5537464,1775.3,1774.9,1.97261]
[1746034673148,13.3705864,1775.0,1774.6,4.0581]
[1746034673346,13.3069264,1774.9,1774.8,1.12683]
[1746034673550,1.12662,1775.2,1774.9,2.81691]
[1746034673745,10.5537464,1775.1,1775.0,1.1267]
[1746034673945,10.5537464,1775.1,1775.0,2.7715]
[1746034674142,1.6264,1775.2,1775.1,1.12664]
[1746034674450,18.9723464,1775.2,1775.1,2.77144]
[1746034674652,20.0989164,1775.2,1775.1,1.12664]
[1746034675150,1.12664,1775.1,1775.0,1.12665]
[1746034675356,13.3067864,1775.1,1775.0,1.12665]
[1746034675848,20.0989864,1775.1,1775.0,1.12665]
[1746034676950,1.6264,1775.1,1775.0,1.12665]
[1746034677754,4.33427,1775.4,1775.1,2.81646]
[1746034677951,14.2349857,1775.4,1775.3,1.12651]
[1746034678153,15.8446857,1775.4,1775.3,1.12651]
[1746034678346,12.6368857,1775.4,1775.3,1.12651]
[1746034678548,1.12655,1775.3,1775.2,1.12652]
[1746034678742,12.2101464,1775.3,1775.0,3.828]
[1746034678943,10.5537464,1775.1,1775.0,4.9547]
[1746034679142,10.7575357,1775.2,1775.1,1.12664]
[1746034679345,1.6564,1775.2,1775.1,1.12664]
[1746034680044,2.78297,1775.2,1775.1,1.12664]
[1746034680350,1.12668,1775.1,1775.0,1.12665]
[1746034680548,1.6564,1775.1,1775.0,1.12665]
[1746034680753,3.61572,1775.4,1775.3,1.12651]
[1746034680754,2.79617,1775.4,1775.3,1.12651]
[1746034680947,11.24477,1775.4,1775.3,1.12651]
[1746034681146,21.7985164,1775.4,1775.3,1.12651]
[1746034681749,1.12651,1775.3,1775.2,1.12652]
[1746034681947,12.3101464,1775.3,1775.2,1.12652]
[1746034682251,0.7996,1775.4,1775.3,1.12651]
[1746034682451,5.5824,1775.5,1775.4,1.12645]
[1746034682646,22.9283464,1775.5,1775.4,1.12645]
[1746034683542,0.8097,1775.7,1775.6,1.12632]
[1746034683750,0.8701,1776.0,1775.8,1.12619]
[1746034683751,1.7564,1775.9,1775.8,1.12619]
[1746034683944,10.0012107,1775.9,1775.8,1.12619]
[1746034684146,20.2284764,1775.9,1775.8,1.12619]
[1746034684549,1.7564,1775.9,1775.8,1.12619]
[1746034684752,1.7564,1775.9,1775.8,4.33399]
[1746034684956,3.2078,1776.5,1775.8,12.0338]
[1746034685154,11.4094464,1777.0,1776.9,1.12549]
[1746034685348,9.9568357,1777.0,1776.9,1.12549]
[1746034685558,9.9568357,1777.0,1776.9,41.92549]
[1746034685753,0.8557,1777.0,1776.9,41.92549]
[1746034686057,10.5537464,1777.0,1776.9,41.92545]
[1746034686260,1.1253,1777.3,1776.9,40.8]
[1746034686557,12.2326464,1777.3,1777.2,1.1253]
[1746034686854,11.0489507,1777.3,1777.2,1.1253]
[1746034687056,1.12533,1777.2,1777.0,1.12543]
[1746034687262,12.2326464,1777.1,1776.9,40.8]
[1746034687455,11.6791764,1777.0,1776.9,40.8]
[1746034687757,15.0110764,1777.0,1776.9,40.8]
[1746034687958,35.5242764,1777.0,1776.5,2.82252]
[1746034688156,10.5537464,1776.5,1776.4,4.33361]
[1746034688360,11.6795164,1776.5,1776.4,40.8]
[1746034688659,1.12587,1776.3,1776.2,4.9046]
[1746034688862,1.126,1776.1,1776.0,7.46357851]
[1746034689056,10.5537464,1776.1,1776.0,7.46357851]
[1746034689248,2.4613,1776.2,1776.1,1.126]
[1746034689453,2.4613,1776.2,1776.1,3.2078]
[1746034689647,2.4613,1776.2,1776.1,4.3338]
[1746034689648,1.6623,1776.2,1776.1,4.3338]
[1746034689856,0.799,1776.5,1776.4,1.12581]
[1746034690155,10.5537464,1776.3,1776.1,3.2078]
[1746034690349,13.3419864,1776.2,1776.1,3.2078]
[1746034690753,13.3419864,1776.2,1775.9,4.33391]
[1746034690754,1.126,1776.1,1775.9,4.33391]
[1746034691060,12.1691464,1776.0,1775.9,4.33391]
[1746034691261,2.81457,1776.4,1775.9,4.33391]
[1746034691262,2.8142,1776.7,1775.9,44.0078]
[1746034691571,12.1691464,1776.3,1776.2,4.33374]
[1746034691861,10.5537464,1776.5,1776.4,1.12581]
[1746034692055,0.8564,1776.6,1776.5,1.12575]
[1746034692251,2.4718,1777.0,1776.9,1.12549]
[1746034692449,3.9244107,1777.0,1776.9,1.12549]
[1746034692761,1.12556,1776.8,1776.7,4.9326]
[1746034692956,11.6793064,1776.8,1776.7,3.2078]
[1746034693158,18.4715064,1776.8,1776.7,3.2078]
[1746034693555,20.0869064,1776.8,1776.7,3.2078]
[1746034693756,1.12575,1776.5,1776.4,4.9326]
[1746034694057,10.2268857,1776.5,1776.4,4.9326]
[1746034694254,1.12573,1776.6,1776.5,1.12574]
[1746034694461,10.2099407,1776.6,1776.5,1.12574]
[1746034694756,19.3110764,1776.6,1776.5,1.12574]
[1746034695553,1.12575,1776.5,1776.4,46.85836]
[1746034695753,11.8622857,1776.5,1776.4,46.85836]
[1746034695954,2.76115,1776.5,1776.4,46.85836]
[1746034696163,2.76115,1776.5,1776.4,50.68636]
[1746034696461,1.6354,1776.5,1776.4,50.68636]
[1746034696666,2.76115,1776.5,1776.4,48.96156]
[1746034696959,1.6354,1776.5,1776.4,48.96156]
[1746034697263,1.96513,1776.6,1776.5,1.12575]
[1746034697462,11.6794764,1776.6,1776.5,1.12575]
[1746034697762,10.2268157,1776.6,1776.5,1.12575]
[1746034698163,1.12575,1776.5,1776.4,45.13357]
[1746034698365,13.3560964,1776.5,1776.4,45.13357]
[1746034698663,11.9034857,1776.5,1776.4,45.13357]
[1746034698860,1.6766,1776.5,1776.4,45.13357]
[1746034699069,1.12564,1776.7,1776.6,1.12563]
[1746034699259,4.2548507,1776.7,1776.6,4.33343]
[1746034699454,20.1481864,1776.7,1776.6,3.2078]
[1746034699657,20.1481864,1776.7,1776.6,4.33348]
[1746034700060,20.15484487,1776.7,1776.6,4.33348]
[1746034700361,20.15484487,1776.7,1776.6,1.12568]
[1746034700565,1.12568,1776.6,1776.5,2.8436]
[1746034700760,11.9006157,1776.6,1776.5,2.8436]
[1746034700958,2.79948,1776.6,1776.5,2.8436]
[1746034701264,20.1454264,1776.6,1776.5,4.9537]
[1746034701655,19.0197464,1776.6,1776.5,4.9537]
[1746034701855,10.7749357,1776.6,1776.5,4.9537]
[1746034702063,10.7749357,1776.6,1776.5,6.692]
[1746034702258,1.6738,1776.6,1776.5,6.692]
[1746034702865,2.79948,1776.6,1776.5,6.692]
[1746034703061,1.13231847,1776.7,1776.6,1.12568]
[1746034703269,13.34556487,1776.7,1776.6,1.12568]
[1746034703767,20.13776487,1776.7,1776.6,1.12568]
[1746034703963,1.12568,1776.6,1776.5,3.828]
[1746034704160,14.2038264,1776.6,1776.5,1.12575]
[1746034704361,20.9960264,1776.6,1776.5,1.12575]
[1746034705062,19.8703464,1776.6,1776.5,1.12575]
[1746034705264,14.2038264,1776.6,1776.5,1.12575]
[1746034705771,10.7606357,1776.6,1776.5,1.12575]
[1746034706063,2.78518,1776.6,1776.5,6.62055]
[1746034706261,1.6595,1776.6,1776.5,6.62055]
[1746034706658,13.3389264,1776.6,1776.5,4.95375]
[1746034706861,20.1311264,1776.6,1776.5,3.828]
[1746034707066,1.12581,1776.4,1776.3,3.3083]
[1746034707264,1.12581,1776.4,1775.9,5.83]
[1746034707265,1.12598,1776.2,1775.9,5.83]
[1746034707572,11.4060464,1776.3,1776.2,1.12594]
[1746034707867,0.8523,1776.3,1776.2,4.33374]
[1746034708065,6.67094,1776.6,1776.5,1.12575]
[1746034708258,14.0210464,1776.6,1776.5,1.12575]
[1746034708462,12.5684357,1776.6,1776.5,1.12575]
[1746034708661,11.7035357,1776.6,1776.5,1.12575]
[1746034708864,11.7035357,1776.6,1776.5,2.77745]
[1746034709062,11.7035357,1776.6,1776.5,6.60545]
[1746034709971,12.8292157,1776.6,1776.5,6.60545]
[1746034710361,11.7035357,1776.6,1776.5,6.60545]
[1746034712068,12.8292157,1776.6,1776.5,4.95375]
[1746034712263,17.7082264,1776.6,1776.5,4.95375]
[1746034712465,16.5825464,1776.6,1776.5,4.95375]
[1746034713170,0.00665847,1776.7,1776.6,1.12568]
[1746034713374,0.00665847,1776.7,1776.6,5.99658]
[1746034716373,0.00665847,1776.7,1776.6,4.33348]
[1746034716769,0.00665847,1776.7,1776.6,6.05918]
[1746034717071,9.10779417,1776.7,1776.6,4.33348]
[1746034717473,10.70669417,1776.7,1776.6,4.33348]
[1746034717671,16.71132487,1776.7,1776.6,4.33348]
[1746034717875,1.12568,1776.6,1776.5,4.95375]
[1746034718074,14.1147264,1776.6,1776.5,4.95375]
[1746034718278,1.12575,1776.5,1776.4,3.2078]
[1746034718570,13.1108464,1776.5,1776.4,4.33361]
[1746034718772,16.5372464,1776.5,1776.4,4.33361]
[1746034718974,17.6629964,1776.5,1776.4,4.33361]
[1746034719570,16.5372464,1776.5,1776.4,4.33361]
[1746034720070,16.5372464,1776.5,1776.4,8.16161]
[1746034721276,15.6560464,1776.5,1776.4,8.16161]
[1746034721678,0.00665847,1776.7,1776.4,7.0358]
[1746034721867,12.16400487,1776.7,1776.6,1.12568]
[1746034722579,13.28962487,1776.7,1776.6,1.12568]
[1746034722779,12.16400487,1776.7,1776.6,1.12568]
[1746034723278,1.12568,1776.6,1776.5,4.9537]
[1746034723473,13.2830264,1776.6,1776.5,4.9537]
[1746034723678,16.7094264,1776.6,1776.5,4.9537]
[1746034724178,16.7094264,1776.6,1776.5,1.1257]
[1746034724576,15.5837464,1776.6,1776.5,1.1257]
[1746034724774,0.00665847,1776.7,1776.6,1.12568]
[1746034724969,3.21476917,1776.7,1776.6,4.33348]
[1746034725175,12.31590487,1776.7,1776.6,5.96818]
[1746034728584,13.44152487,1776.7,1776.6,4.33348]
[1746034728786,16.86792487,1776.7,1776.6,4.33348]
[1746034729485,7.76678917,1776.7,1776.6,4.33348]
[1746034729690,16.86792487,1776.7,1776.6,4.33348]
[1746034729984,1.12581,1776.5,1776.3,3.2078]
[1746034730184,13.3497564,1776.4,1776.3,4.33367]
[1746034730379,16.7761564,1776.4,1776.3,4.33367]
[1746034731286,16.7761564,1776.4,1776.3,3.2078]
[1746034731586,1.12594,1776.2,1776.1,0.3776]
[1746034731787,11.6796864,1776.2,1776.1,1.5036]
[1746034732090,13.9801464,1776.2,1776.1,1.126]
[1746034732389,10.5537464,1776.2,1776.1,1.126]
[1746034732591,12.2520464,1776.2,1776.1,4.3338]
[1746034733591,13.3779864,1776.2,1776.1,1.126]
[1746034733786,15.6784464,1776.2,1775.9,47.8358]
[1746034733986,2.76386,1776.1,1776.0,1.12603]
[1746034734385,16.7440064,1776.1,1776.0,1.12603]
[1746034734585,16.7440064,1776.1,1775.9,45.13392]
[1746034734786,12.9900464,1776.0,1775.9,45.51142]
[1746034734982,13.8043464,1776.0,1775.9,45.51142]
[1746034735185,13.8043464,1776.0,1775.9,44.3853]
[1746034735387,17.2307464,1776.0,1775.9,44.3853]
[1746034735587,23.3568064,1776.0,1775.9,0.3775]
[1746034735787,18.3568064,1776.0,1775.9,0.3775]
[1746034736193,17.2307464,1776.0,1775.9,0.3775]
[1746034736390,3.8889107,1776.0,1775.9,1.50363]
[1746034736696,5.86329,1776.2,1776.0,1.12603]
[1746034736998,2.8203,1776.1,1776.0,3.2078]
[1746034737197,13.3740464,1776.1,1776.0,8.16186]
[1746034737392,16.8004464,1776.1,1776.0,8.16186]
[1746034737587,16.8004464,1776.1,1776.0,7.0358]
[1746034737897,6.02092,1777.3,1776.3,2.8146]
[1746034738191,0.8623,1777.2,1776.8,3.2078]
[1746034738394,10.5537464,1777.0,1776.9,1.12544]
[1746034738598,10.5537464,1777.1,1777.0,1.12543]
[1746034738791,10.5537464,1777.1,1776.9,1.12545]
[1746034738992,10.5537464,1777.1,1776.8,4.0864]
[1746034739192,2.81282,1777.5,1777.2,1.12528]
[1746034739193,3.2078,1777.5,1777.2,1.12528]
[1746034739394,10.5537464,1777.2,1777.1,1.12535]
[1746034739896,6.6342,1777.5,1777.0,3.2078]
[1746034739897,4.33291,1777.5,1777.0,3.2078]
[1746034740192,10.5537464,1777.1,1777.0,4.33323]
[1746034740392,7.75935,1777.5,1777.2,1.1253]
[1746034740594,10.5537464,1777.3,1777.2,1.1253]
[1746034741093,1.12514,1777.5,1777.3,1.12521]
[1746034741292,12.2923464,1777.4,1777.3,1.12521]
[1746034743204,13.4175464,1777.4,1777.2,4.33306]
[1746034743409,11.6789864,1777.3,1777.2,3.2078]
[1746034743698,9.1011357,1777.3,1777.2,4.3331]
[1746034744000,1.6104,1777.5,1777.3,1.1252]
[1746034744204,10.5537464,1777.3,1777.2,4.33306]
[1746034744595,9.1011357,1777.3,1777.2,4.33306]
[1746034744996,10.5537464,1777.3,1777.2,4.33306]
[1746034745202,15.1053864,1777.3,1777.1,1.12537]
[1746034745402,10.5537464,1777.2,1777.1,1.12537]
[1746034746106,15.5070864,1777.2,1777.1,1.12537]
[1746034746302,15.2195464,1777.2,1777.1,1.12537]
[1746034746603,18.6459464,1777.2,1777.0,3.2078]
[1746034746799,11.6791464,1777.1,1776.9,1.12549]
[1746034746998,8.9387,1777.2,1777.1,1.12537]
[1746034747199,3.922,1777.3,1777.2,1.1253]
[1746034747505,9.1011357,1777.3,1777.2,1.1253]
[1746034747694,1.96304,1777.5,1777.4,1.12518]
[1746034747900,2.5777907,1777.4,1777.3,1.1252]
[1746034748206,5.2806107,1777.4,1777.3,1.1252]
[1746034748504,14.3817464,1777.4,1777.3,1.1252]
[1746034748703,3.828,1777.4,1777.3,1.1252]
[1746034748901,3.828,1777.4,1777.3,2.0082]
[1746034749103,1.12512,1777.5,1777.4,1.12518]
[1746034749408,10.5537464,1777.4,1777.0,3.2078]
[1746034749599,11.3668464,1777.3,1777.2,1.12529]
[1746034750004,9.9142357,1777.3,1777.2,1.12529]